bitfinex/quotes_BTCUSD_20230117
["timestamp","ask_amount","ask_price","bid_price","bid_amount"]
[1673921273881,0.54967027,21045.0,21042.0,0.004]
[1673921274422,0.21285869,21044.0,21042.0,0.004]
[1673921275248,0.21285869,21044.0,21040.0,0.61640727]
[1673921275505,0.68839622,21044.0,21042.0,0.003]
[1673921275762,0.49767027,21044.0,21042.0,0.003]
[1673921276022,0.35528292,21043.0,21042.0,0.003]
[1673921277289,0.35528292,21043.0,21040.0,0.475273]
[1673921277552,0.005,21043.0,21042.0,0.038]
[1673921278608,0.14242423,21046.0,21042.0,0.69227327]
[1673921278866,0.005,21043.0,21042.0,0.90325652]
[1673921279151,0.005,21043.0,21042.0,1.20325652]
[1673921279381,0.005,21043.0,21042.0,0.851139]
[1673921279642,0.35528292,21046.0,21042.0,0.851139]
[1673921279909,0.35528292,21046.0,21043.0,0.3]
[1673921280168,0.63858653,21047.0,21043.0,1.25041]
[1673921280169,0.35528292,21047.0,21043.0,1.25041]
[1673921280447,0.35528292,21046.0,21043.0,0.475214]
[1673921280672,0.35290907,21046.0,21043.0,0.475214]
[1673921280935,0.40390907,21046.0,21043.0,0.475214]
[1673921281198,0.14005038,21046.0,21043.0,0.475214]
[1673921281729,0.13767609,21046.0,21043.0,0.475214]
[1673921281980,0.18867609,21046.0,21043.0,0.479214]
[1673921282767,0.26385869,21046.0,21043.0,0.479214]
[1673921284068,0.45458464,21046.0,21043.0,0.004]
[1673921284371,0.21285869,21045.0,21043.0,0.004]
[1673921285115,0.49667027,21045.0,21043.0,0.004]
[1673921285375,0.21285869,21045.0,21043.0,0.004]
[1673921285910,0.49667027,21045.0,21043.0,0.004]
[1673921286716,0.21285869,21044.0,21040.0,0.61640427]
[1673921287033,0.40358464,21044.0,21043.0,0.004]
[1673921287232,0.49667027,21044.0,21043.0,0.004]
[1673921287487,0.49667027,21044.0,21040.0,0.47527]
[1673921287746,0.40858464,21044.0,21040.0,0.65640427]
[1673921288286,0.40858464,21044.0,21040.0,0.51527]
[1673921288287,0.69239622,21044.0,21040.0,0.51527]
[1673921288532,0.21285869,21044.0,21040.0,0.47527]
[1673921288798,0.21285869,21044.0,21043.0,0.09641]
[1673921288799,0.001,21044.0,21043.0,0.09641]
[1673921289054,0.49667027,21046.0,21043.0,0.09641]
[1673921289308,0.005,21044.0,21043.0,0.09641]
[1673921289572,0.005,21044.0,21043.0,0.39641]
[1673921289831,0.21285869,21045.0,21043.0,0.39641]
[1673921290083,0.21285869,21045.0,21043.0,0.09641]
[1673921290353,0.49667027,21045.0,21041.0,0.775259]
[1673921290613,0.68739622,21045.0,21041.0,0.775259]
[1673921291152,0.68739622,21045.0,21043.0,0.004]
[1673921291415,0.49667027,21045.0,21041.0,0.775259]
[1673921291684,0.73839622,21045.0,21041.0,0.779259]
[1673921292405,0.21285869,21044.0,21041.0,0.779259]
[1673921292652,0.35530821,21044.0,21041.0,0.779259]
[1673921292915,0.14244952,21044.0,21041.0,0.779259]
[1673921293138,0.14244952,21044.0,21042.0,0.3]
[1673921293643,0.14344952,21044.0,21042.0,0.3]
[1673921293899,0.14244952,21044.0,21042.0,0.3]
[1673921294164,0.14344952,21044.0,21042.0,0.304]
[1673921294424,0.35630821,21044.0,21042.0,0.304]
[1673921295190,0.14244952,21043.0,21042.0,0.304]
[1673921295449,0.35630821,21044.0,21042.0,0.304]
[1673921295705,0.35630821,21044.0,21042.0,0.004]
[1673921295978,0.35630821,21044.0,21042.0,0.304]
[1673921296755,0.35530821,21044.0,21042.0,0.3]
[1673921297019,0.005,21043.0,21042.0,0.3]
[1673921297535,0.005,21043.0,21042.0,0.304]
[1673921298057,0.14344952,21044.0,21042.0,0.304]
[1673921298314,0.14244952,21044.0,21042.0,0.3]
[1673921298573,0.005,21043.0,21042.0,0.34]
[1673921299947,0.35530821,21044.0,21042.0,0.3]
[1673921300165,0.35630821,21044.0,21042.0,0.304]
[1673921300960,0.35530821,21044.0,21042.0,0.3]
[1673921301257,0.14244952,21043.0,21041.0,0.475259]
[1673921301490,0.21285869,21044.0,21042.0,0.479239]
[1673921301491,0.14344952,21044.0,21042.0,0.479239]
[1673921301759,0.001,21044.0,21043.0,0.14183474]
[1673921302027,0.001,21044.0,21043.0,0.551817]
[1673921302283,0.001,21044.0,21043.0,0.69365174]
[1673921302596,0.001,21044.0,21043.0,1.71365216]
[1673921302809,0.001,21044.0,21043.0,1.99577354]
[1673921303080,0.001,21044.0,21043.0,1.78601421]
[1673921303333,0.001,21044.0,21043.0,1.99853583]
[1673921303587,0.35530821,21049.0,21044.0,0.15]
[1673921303868,0.14244952,21048.0,21046.0,0.0766]
[1673921304113,0.14244952,21048.0,21046.0,0.851732]
[1673921304643,0.40430821,21049.0,21046.0,0.851732]
[1673921304906,0.14244952,21049.0,21046.0,0.851732]
[1673921305175,0.50465376,21050.0,21046.0,0.855732]
[1673921305176,0.046,21048.0,21046.0,0.855732]
[1673921305430,0.00798349,21050.0,21046.0,0.855732]
[1673921305431,0.15043301,21050.0,21047.0,0.0766]
[1673921305685,0.046,21049.0,21048.0,0.551604]
[1673921305940,0.15043301,21050.0,21048.0,0.851604]
[1673921306456,0.15043301,21050.0,21048.0,0.551604]
[1673921306670,0.15043301,21050.0,21048.0,0.553604]
[1673921306964,0.00798349,21050.0,21048.0,0.553604]
[1673921308019,0.00798349,21050.0,21048.0,0.551604]
[1673921308273,0.05398349,21050.0,21049.0,0.3]
[1673921309060,0.00798349,21050.0,21049.0,0.3]
[1673921309319,0.05398349,21050.0,21049.0,0.10041]
[1673921310411,0.19643301,21050.0,21049.0,0.004]
[1673921310656,0.05398349,21050.0,21049.0,0.004]
[1673921311180,0.19643301,21050.0,21049.0,0.004]
[1673921311960,0.05398349,21050.0,21049.0,0.004]
[1673921314801,0.19643301,21050.0,21049.0,0.004]
[1673921315609,0.05398349,21050.0,21049.0,0.004]
[1673921323320,0.05398349,21050.0,21049.0,0.875491]
[1673921323507,0.05398349,21050.0,21049.0,0.952091]
[1673921324590,0.05398349,21050.0,21049.0,0.95231111]
[1673921324591,0.05160224,21050.0,21049.0,0.95231111]
[1673921325626,0.04922099,21050.0,21049.0,0.95231111]
[1673921326702,0.04922099,21050.0,21049.0,0.004]
[1673921326703,0.23756569,21050.0,21049.0,0.004]
[1673921326967,0.04683974,21050.0,21049.0,0.004]
[1673921327482,0.04683974,21050.0,21049.0,0.10041]
[1673921327741,0.04683974,21050.0,21049.0,0.004]
[1673921328010,0.04683974,21050.0,21049.0,0.575491]
[1673921328271,0.04683974,21050.0,21049.0,0.87571111]
[1673921329082,0.04683974,21050.0,21049.0,0.004]
[1673921333534,0.04683974,21050.0,21049.0,0.09163]
[1673921334908,0.04683974,21050.0,21049.0,0.004]
[1673921335634,0.04683974,21050.0,21049.0,0.09163]
[1673921339241,0.04683974,21050.0,21049.0,0.643311]
[1673921339494,0.04683974,21050.0,21049.0,1.31118886]
[1673921339755,0.04683974,21050.0,21049.0,1.019511]
[1673921340021,0.00083974,21050.0,21049.0,0.939311]
[1673921340288,0.00883974,21050.0,21049.0,0.947311]
[1673921340542,0.00645872,21050.0,21049.0,0.947311]
[1673921341614,0.00407781,21050.0,21049.0,0.947311]
[1673921342941,0.00169656,21050.0,21049.0,0.947311]
[1673921343649,0.15124964,21052.0,21049.0,0.947311]
[1673921343937,0.15124964,21052.0,21050.0,0.3766]
[1673921344228,0.15124964,21052.0,21050.0,0.851642]
[1673921344741,0.00880012,21052.0,21050.0,0.851642]
[1673921344990,0.01280012,21052.0,21050.0,0.851642]
[1673921345262,0.15124964,21052.0,21050.0,0.851642]
[1673921345506,0.15524964,21052.0,21050.0,0.865642]
[1673921346286,0.15524964,21052.0,21051.0,0.00022009]
[1673921346540,0.15524964,21052.0,21051.0,0.08785009]
[1673921347301,0.15124964,21052.0,21051.0,0.08785009]
[1673921347547,0.01280012,21052.0,21051.0,0.10185009]
[1673921350085,0.01280012,21052.0,21051.0,0.57688609]
[1673921350332,0.01280012,21052.0,21051.0,0.87688609]
[1673921350874,0.01280012,21052.0,21051.0,0.95348609]
[1673921351139,0.01280012,21052.0,21051.0,1.02958609]
[1673921351392,0.01280012,21052.0,21051.0,1.17126395]
[1673921351647,0.0104191,21052.0,21051.0,1.17958609]
[1673921352426,0.0104191,21052.0,21051.0,1.02958609]
[1673921352675,0.00803808,21052.0,21051.0,1.02958609]
[1673921352928,0.00803808,21052.0,21051.0,1.17958609]
[1673921353436,0.00803808,21052.0,21051.0,1.02958609]
[1673921353694,0.00565706,21052.0,21051.0,1.02958609]
[1673921353954,0.00565706,21052.0,21051.0,1.17958609]
[1673921354212,0.00565706,21052.0,21051.0,1.02958609]
[1673921354536,0.00565706,21052.0,21051.0,0.95298609]
[1673921354732,0.00327604,21052.0,21051.0,0.65298609]
[1673921355014,0.00327604,21052.0,21051.0,0.48925609]
[1673921355522,0.00327604,21052.0,21051.0,0.489036]
[1673921355773,0.00089502,21052.0,21051.0,0.489036]
[1673921356024,0.00089502,21052.0,21051.0,0.014]
[1673921359059,0.00089502,21052.0,21051.0,0.01422009]
[1673921359662,0.00089502,21052.0,21051.0,0.31422009]
[1673921361151,0.00089502,21052.0,21051.0,0.78925609]
[1673921362736,8.5e-07,21052.0,21051.0,0.78925609]
[1673921365122,8.5e-07,21052.0,21051.0,0.789036]
[1673921366501,0.00808728,21054.0,21051.0,0.789036]
[1673921367026,0.00808728,21054.0,21051.0,0.489036]
[1673921367293,0.2264368,21054.0,21051.0,0.489036]
[1673921367558,0.08398728,21054.0,21051.0,0.475036]
[1673921367815,0.15598728,21054.0,21051.0,0.477036]
[1673921369125,0.29836264,21054.0,21051.0,0.477036]
[1673921369656,0.22246264,21054.0,21051.0,0.477036]
[1673921370630,0.08001312,21054.0,21051.0,0.477036]
[1673921371138,0.22246264,21054.0,21051.0,0.477036]
[1673921371403,0.62604728,21054.0,21051.0,0.002]
[1673921371654,0.14244952,21053.0,21051.0,0.002]
[1673921371918,0.43532133,21054.0,21051.0,0.002]
[1673921372915,0.07371909,21053.0,21051.0,0.002]
[1673921373169,0.21616861,21053.0,21051.0,0.002]
[1673921374003,0.07371909,21053.0,21050.0,0.475038]
[1673921374180,0.25916861,21053.0,21051.0,0.002]
[1673921375193,0.4720273,21053.0,21051.0,0.002]
[1673921375966,0.25916861,21053.0,21051.0,0.002]
[1673921376490,0.11671909,21053.0,21051.0,0.002]
[1673921376758,0.043,21053.0,21051.0,0.302]
[1673921377286,0.18544952,21053.0,21051.0,0.302]
[1673921377532,0.18544952,21053.0,21051.0,0.002]
[1673921379444,0.18544952,21053.0,21051.0,0.302]
[1673921379700,0.18544952,21053.0,21051.0,0.002]
[1673921379701,0.39830821,21053.0,21051.0,0.002]
[1673921379956,0.14244952,21052.0,21051.0,0.002]
[1673921380517,0.39830821,21053.0,21051.0,0.002]
[1673921380761,0.18544952,21053.0,21051.0,0.002]
[1673921381007,0.14244952,21053.0,21050.0,0.775058]
[1673921381260,0.004,21052.0,21051.0,0.018]
[1673921381519,0.14244952,21053.0,21050.0,0.775058]
[1673921381977,0.18544952,21053.0,21051.0,0.002]
[1673921382240,0.14244952,21053.0,21050.0,0.775058]
[1673921382501,0.004,21052.0,21051.0,0.018]
[1673921383289,0.14244952,21053.0,21050.0,0.775058]
[1673921383544,0.18544952,21053.0,21050.0,0.777058]
[1673921383809,0.14244952,21053.0,21050.0,0.775058]
[1673921384068,0.004,21052.0,21051.0,0.018]
[1673921384341,0.15046264,21054.0,21050.0,0.775058]
[1673921384592,0.043,21053.0,21050.0,0.777058]
[1673921384854,0.18544952,21053.0,21050.0,0.777058]
[1673921385362,0.14244952,21053.0,21050.0,0.775058]
[1673921385867,0.14006904,21053.0,21050.0,0.777058]
[1673921385877,0.14006904,21053.0,21050.0,0.775058]
[1673921386128,0.14006904,21053.0,21050.0,0.777058]
[1673921386129,0.18306904,21053.0,21050.0,0.777058]
[1673921386382,0.18306904,21053.0,21051.0,0.00022009]
[1673921386635,0.18068813,21053.0,21051.0,0.00022009]
[1673921387144,0.53967027,21053.0,21050.0,0.477058]
[1673921387410,0.49667027,21053.0,21049.0,0.475079]
[1673921387665,0.49667027,21053.0,21051.0,0.002]
[1673921387666,0.72801531,21053.0,21051.0,0.002]
[1673921387910,0.25347778,21053.0,21051.0,0.002]
[1673921388423,0.25347778,21053.0,21049.0,0.475079]
[1673921388424,0.21047778,21053.0,21049.0,0.475079]
[1673921388673,0.44420373,21053.0,21050.0,0.3002201]
[1673921388939,0.21047778,21053.0,21050.0,0.3002201]
[1673921389192,0.3681247,21054.0,21050.0,0.3002201]
[1673921389521,0.00801312,21054.0,21050.0,0.7752791]
[1673921389714,0.043,21053.0,21051.0,0.002]
[1673921391032,0.043,21053.0,21050.0,0.002]
[1673921391287,0.51753753,21053.0,21050.0,0.002]
[1673921391558,0.36981158,21053.0,21051.0,0.002]
[1673921391814,0.51981158,21053.0,21051.0,0.002]
[1673921392123,0.44641158,21053.0,21051.0,0.002]
[1673921392376,0.36041158,21053.0,21049.0,0.475079]
[1673921392635,1.03151638,21053.0,21049.0,0.475079]
[1673921392899,0.55113753,21053.0,21050.0,0.0002201]
[1673921393195,0.84080635,21053.0,21050.0,0.0002201]
[1673921393484,0.36041158,21053.0,21050.0,0.3]
[1673921394048,0.36041158,21053.0,21049.0,0.475079]
[1673921394306,0.59413753,21053.0,21051.0,0.002]
[1673921394589,0.44411282,21053.0,21051.0,0.002]
[1673921394850,0.92432106,21053.0,21051.0,0.002]
[1673921395107,0.71288777,21053.0,21049.0,0.475079]
[1673921395364,0.90361372,21053.0,21050.0,0.0002201]
[1673921395624,0.35811282,21053.0,21050.0,0.0002201]
[1673921396027,0.35811282,21053.0,21049.0,0.475079]
[1673921396288,1.0290441,21053.0,21049.0,0.475079]
[1673921396538,0.90131451,21053.0,21050.0,0.0002201]
[1673921396797,0.35599328,21052.0,21050.0,0.0002201]
[1673921397340,0.35599328,21052.0,21051.0,0.002]
[1673921397571,0.35599328,21052.0,21051.0,0.00222009]
[1673921397836,1.24054052,21052.0,21051.0,0.002]
[1673921398113,1.24054052,21052.0,21048.0,0.475091]
[1673921398114,0.39862,21052.0,21048.0,0.475091]
[1673921398380,0.53562745,21051.0,21047.0,0.91680286]
[1673921398633,0.40203556,21051.0,21047.0,0.91680286]
[1673921398892,0.40203556,21051.0,21048.0,0.00022012]
[1673921399147,0.36130961,21051.0,21048.0,0.00022012]
[1673921399656,0.21130961,21051.0,21048.0,0.00022012]
[1673921399948,0.43137495,21052.0,21048.0,0.30022012]
[1673921399949,0.0766,21052.0,21048.0,0.30022012]
[1673921400208,0.0766,21052.0,21048.0,0.00022012]
[1673921400459,0.0766,21052.0,21047.0,0.61680286]
[1673921400714,0.26732595,21052.0,21048.0,0.3]
[1673921400983,0.26732595,21052.0,21047.0,0.61680286]
[1673921400984,0.0766,21052.0,21047.0,0.61680286]
[1673921401313,0.26732595,21052.0,21048.0,0.44167786]
[1673921401507,0.26732595,21052.0,21048.0,0.91677086]
[1673921401755,0.0766,21052.0,21048.0,0.91677086]
[1673921402262,0.0806,21052.0,21051.0,0.018]
[1673921402509,0.0806,21052.0,21048.0,0.91677086]
[1673921402764,0.31432595,21052.0,21048.0,0.91877086]
[1673921403035,0.1236,21052.0,21048.0,0.91877086]
[1673921403287,0.31432595,21052.0,21048.0,1.13127623]
[1673921403507,0.31432595,21052.0,21048.0,0.002]
[1673921403825,0.31432595,21052.0,21048.0,0.302]
[1673921404068,0.31432595,21052.0,21048.0,0.002]
[1673921404342,0.31432595,21052.0,21048.0,0.302]
[1673921404602,0.88717717,21052.0,21048.0,0.002]
[1673921404863,0.76317182,21052.0,21048.0,0.002]
[1673921405378,0.28479687,21051.0,21048.0,0.002]
[1673921405631,0.76317182,21052.0,21048.0,0.002]
[1673921405888,0.76317182,21052.0,21049.0,0.00022011]
[1673921406161,0.28479687,21051.0,21048.0,0.002]
[1673921406501,0.76317182,21052.0,21048.0,0.002]
[1673921406977,0.40439687,21052.0,21049.0,0.00022011]
[1673921407233,0.36139687,21052.0,21049.0,0.00022011]
[1673921407514,0.004,21051.0,21049.0,0.00022011]
[1673921407783,0.14638144,21051.0,21049.0,0.00022011]
[1673921408320,0.14238144,21051.0,21049.0,0.00022011]
[1673921408799,0.39895359,21052.0,21049.0,0.00022011]
[1673921409093,0.004,21051.0,21049.0,0.018]
[1673921409330,0.14638144,21051.0,21049.0,0.018]
[1673921409852,0.14238144,21051.0,21048.0,0.775099]
[1673921410096,0.14238144,21051.0,21049.0,0.002]
[1673921410360,0.14238144,21051.0,21048.0,0.775099]
[1673921410595,0.13238144,21051.0,21048.0,0.775099]
[1673921411364,0.004,21051.0,21048.0,0.775099]
[1673921411883,0.008,21051.0,21048.0,0.793099]
[1673921412401,0.008,21051.0,21048.0,0.93477686]
[1673921413109,0.008,21051.0,21048.0,0.793099]
[1673921414896,0.008,21051.0,21048.0,0.493099]
[1673921415671,0.008,21051.0,21049.0,0.3]
[1673921416476,0.004,21051.0,21049.0,0.3]
[1673921416701,0.32647215,21052.0,21049.0,0.318]
[1673921416994,0.004,21051.0,21049.0,0.318]
[1673921417501,0.004,21051.0,21049.0,0.018]
[1673921417765,0.32647215,21052.0,21048.0,0.475099]
[1673921418019,0.65426902,21052.0,21049.0,0.002]
[1673921418280,0.61126902,21052.0,21048.0,0.475099]
[1673921418797,0.80199497,21052.0,21048.0,0.475099]
[1673921419055,0.84499497,21052.0,21048.0,0.477099]
[1673921419325,0.21357215,21051.0,21048.0,0.69089603]
[1673921420580,0.35596719,21051.0,21048.0,0.69089603]
[1673921420839,0.35596719,21051.0,21048.0,0.68889603]
[1673921421104,0.35996719,21051.0,21048.0,0.70689603]
[1673921421645,0.14639504,21051.0,21049.0,0.0199291]
[1673921422420,0.35996719,21051.0,21049.0,0.0199291]
[1673921422936,0.35596719,21051.0,21049.0,0.0199291]
[1673921423218,0.35996719,21051.0,21049.0,0.0379291]
[1673921423920,0.14239504,21050.0,21049.0,0.0379291]
[1673921424938,0.14239504,21050.0,21049.0,0.0199291]
[1673921425200,0.14939504,21050.0,21049.0,0.0379291]
[1673921425448,0.36296719,21050.0,21049.0,0.0379291]
[1673921425705,0.14939504,21050.0,21049.0,0.03832388]
[1673921425974,0.14939504,21050.0,21049.0,0.0379291]
[1673921426696,0.007,21050.0,21049.0,0.3379291]
[1673921427216,0.007,21050.0,21049.0,1.42176077]
[1673921427469,0.007,21050.0,21049.0,1.78159786]
[1673921427729,0.007,21050.0,21049.0,1.99384298]
[1673921427990,0.007,21050.0,21049.0,1.7105032]
[1673921428309,0.007,21050.0,21049.0,2.1060485]
[1673921428545,0.007,21050.0,21049.0,2.24593186]
[1673921429052,0.007,21050.0,21049.0,1.89340851]
[1673921429313,0.007,21050.0,21049.0,2.10558589]
[1673921429581,0.007,21050.0,21049.0,2.24593186]
[1673921430354,0.007,21050.0,21049.0,1.89340851]
[1673921430925,0.007,21050.0,21049.0,2.24593186]
[1673921431183,0.007,21050.0,21049.0,1.89340851]
[1673921431946,0.007,21050.0,21049.0,2.24593186]
[1673921432933,0.007,21050.0,21049.0,1.89340851]
[1673921433460,0.007,21050.0,21049.0,2.10545716]
[1673921434784,0.007,21050.0,21049.0,1.89340851]
[1673921435309,0.007,21050.0,21049.0,2.10545173]
[1673921435855,0.007,21050.0,21049.0,1.89340851]
[1673921436188,0.00801312,21054.0,21050.0,0.00678948]
[1673921436366,0.00801312,21054.0,21050.0,0.15678948]
[1673921436621,0.00801312,21054.0,21052.0,0.1129]
[1673921436869,0.00801312,21054.0,21053.0,0.949982]
[1673921437135,0.00801312,21054.0,21053.0,1.249982]
[1673921437409,0.07401312,21054.0,21053.0,1.249982]
[1673921437657,0.00801312,21054.0,21053.0,1.249982]
[1673921437912,0.07401312,21054.0,21053.0,1.251982]
[1673921438430,0.11201312,21054.0,21053.0,1.254982]
[1673921439738,0.11201312,21054.0,21053.0,2.19030938]
[1673921440028,0.11201312,21054.0,21053.0,2.40226646]
[1673921440252,0.11201312,21054.0,21053.0,2.4022188]
[1673921440508,0.11201312,21054.0,21053.0,1.62108958]
[1673921440773,0.00801312,21054.0,21053.0,1.61608958]
[1673921441030,0.00801312,21054.0,21053.0,1.391282]
[1673921441031,0.01401312,21054.0,21053.0,1.391282]
[1673921441283,0.01401312,21054.0,21053.0,1.362282]
[1673921441568,0.02001312,21054.0,21053.0,1.391282]
[1673921443124,0.02001312,21054.0,21053.0,1.541282]
[1673921443384,0.02001312,21054.0,21053.0,1.391282]
[1673921444444,0.02001312,21054.0,21053.0,1.503282]
[1673921447056,0.02001312,21054.0,21053.0,1.390982]
[1673921447315,0.02001312,21054.0,21053.0,0.978982]
[1673921449372,0.02001312,21054.0,21053.0,1.278982]
[1673921449904,0.02001312,21054.0,21053.0,0.978982]
[1673921451506,0.02001312,21054.0,21053.0,0.9793767]
[1673921452257,0.02001312,21054.0,21053.0,1.2793767]
[1673921456010,0.02001312,21054.0,21053.0,0.9793767]
[1673921456520,0.02001312,21054.0,21053.0,1.2793767]
[1673921457258,0.02001312,21054.0,21053.0,0.9793767]
[1673921457505,0.02001312,21054.0,21053.0,0.978982]
[1673921457997,0.01991303,21054.0,21053.0,0.978982]
[1673921458237,0.01991303,21054.0,21053.0,1.278982]
[1673921458982,0.01991303,21054.0,21053.0,0.978982]
[1673921459251,0.01991303,21054.0,21053.0,1.278982]
[1673921460268,0.01991303,21054.0,21053.0,0.978982]
[1673921461521,0.01991303,21054.0,21053.0,0.029]
[1673921461779,0.13281303,21054.0,21053.0,0.029]
[1673921463045,0.45483303,21054.0,21053.0,0.029]
[1673921463553,0.13281303,21054.0,21053.0,0.029]
[1673921463811,0.45483303,21054.0,21053.0,0.029]
[1673921464049,0.13281303,21054.0,21053.0,0.029]
[1673921464801,0.45483303,21054.0,21053.0,0.029]
[1673921465310,0.59722807,21054.0,21053.0,0.029]
[1673921466050,0.27520807,21054.0,21053.0,0.029]
[1673921466294,0.59722807,21054.0,21053.0,0.029]
[1673921466537,1.31691746,21054.0,21053.0,0.029]
[1673921466785,1.45931929,21054.0,21053.0,0.029]
[1673921467026,1.36959756,21054.0,21053.0,0.029]
[1673921467293,1.24574714,21054.0,21053.0,0.029]
[1673921467537,1.72506648,21054.0,21053.0,0.029]
[1673921467807,3.15034951,21054.0,21053.0,0.029]
[1673921468062,2.20003548,21054.0,21053.0,0.029]
[1673921468306,3.15034937,21054.0,21053.0,0.029]
[1673921468561,1.83271614,21054.0,21053.0,0.029]
[1673921468811,1.41647757,21054.0,21049.0,0.4950001]
[1673921469054,0.98117308,21054.0,21053.0,0.003]
[1673921469303,0.98117308,21054.0,21049.0,0.4950001]
[1673921469304,0.87954086,21054.0,21049.0,0.4950001]
[1673921469560,0.91006681,21054.0,21053.0,0.003]
[1673921469819,1.15845772,21054.0,21053.0,0.003]
[1673921470077,1.26716086,21054.0,21050.0,0.3]
[1673921470321,0.1129,21051.0,21049.0,0.4980001]
[1673921470573,0.30362595,21051.0,21050.0,0.3]
[1673921470847,0.1129,21051.0,21050.0,0.3]
[1673921472056,0.1129,21051.0,21049.0,0.4950001]
[1673921472559,0.1169,21051.0,21050.0,0.026]
[1673921472815,0.004,21051.0,21050.0,0.026]
[1673921473079,0.004,21051.0,21049.0,0.4950001]
[1673921473309,0.1124,21053.0,21049.0,0.4950001]
[1673921473571,0.004,21051.0,21049.0,0.4950001]
[1673921474711,0.008,21051.0,21050.0,0.026]
[1673921474886,0.40461059,21053.0,21049.0,0.4950001]
[1673921475148,0.004,21051.0,21049.0,0.52092473]
[1673921475980,0.25461059,21053.0,21049.0,0.49492473]
[1673921476204,0.31861059,21053.0,21049.0,0.49792473]
[1673921476740,0.1124,21053.0,21049.0,0.49492473]
[1673921477547,0.004,21051.0,21049.0,0.52092473]
[1673921477805,0.25461059,21053.0,21049.0,0.01985373]
[1673921477806,0.19072595,21050.0,21049.0,0.01985373]
[1673921478079,0.54782,21050.0,21049.0,0.02285373]
[1673921478665,0.66072,21050.0,21049.0,0.02285373]
[1673921478875,0.66072,21050.0,21049.0,0.01985373]
[1673921479134,0.70072,21050.0,21049.0,0.02285373]
[1673921479405,0.70072,21050.0,21049.0,0.01985373]
[1673921479672,0.70672,21050.0,21049.0,0.04685373]
[1673921480452,0.66072,21050.0,21049.0,0.01985373]
[1673921480717,0.70072,21050.0,21049.0,0.02285373]
[1673921480980,3.016929,21050.0,21049.0,0.01985373]
[1673921481280,2.85826863,21050.0,21049.0,0.02285373]
[1673921481540,2.64523761,21050.0,21049.0,0.02285373]
[1673921481797,3.11997924,21050.0,21049.0,0.02285373]
[1673921482054,2.76520429,21050.0,21049.0,0.02285373]
[1673921482312,2.64523761,21050.0,21049.0,0.02285373]
[1673921482800,2.57335376,21050.0,21049.0,0.02285373]
[1673921483059,2.71529481,21050.0,21049.0,0.02285373]
[1673921483321,2.57335376,21050.0,21049.0,0.02285373]
[1673921484087,4.15143335,21050.0,21049.0,0.02056836]
[1673921484091,6.57086316,21050.0,21044.0,0.0094149]
[1673921484368,0.35495398,21047.0,21044.0,0.0094149]
[1673921484631,0.4499,21045.0,21044.0,0.0094149]
[1673921484893,0.77192,21045.0,21044.0,0.0094149]
[1673921485435,0.92192,21045.0,21044.0,0.0094149]
[1673921485683,0.80902,21045.0,21044.0,0.0094149]
[1673921486783,2.9978667,21045.0,21044.0,0.0094149]
[1673921487036,2.54535057,21045.0,21044.0,0.0094149]
[1673921487291,2.45435057,21045.0,21044.0,0.0094149]
[1673921487557,2.54635057,21045.0,21044.0,0.0094149]
[1673921487839,2.45435057,21045.0,21044.0,0.0094149]
[1673921488109,3.49562474,21045.0,21044.0,0.0094149]
[1673921488380,3.63760633,21045.0,21044.0,0.0094149]
[1673921488639,3.79562474,21045.0,21044.0,0.0094149]
[1673921489411,4.15968908,21045.0,21044.0,0.0094149]
[1673921489413,3.76768908,21045.0,21044.0,0.0094149]
[1673921489706,4.30167067,21045.0,21044.0,0.0094149]
[1673921490248,7.08960425,21045.0,21040.0,0.01167093]
[1673921490742,0.1462927,21043.0,21040.0,0.01167093]
[1673921490744,0.1462927,21043.0,21040.0,0.00667093]
[1673921490745,0.00477923,21043.0,21040.0,0.00667093]
[1673921490998,2.38343869,21042.0,21040.0,0.00667093]
[1673921491259,1.13652169,21041.0,21040.0,0.00667093]
[1673921491523,1.62028369,21041.0,21040.0,0.00667093]
[1673921491793,0.909582,21041.0,21040.0,0.00667093]
[1673921492057,0.32202,21041.0,21040.0,0.00667093]
[1673921492314,0.587639,21042.0,21040.0,0.00667093]
[1673921492575,0.587639,21042.0,21037.0,0.30795938]
[1673921492860,0.77836495,21042.0,21037.0,0.30795938]
[1673921493121,0.092,21041.0,21037.0,0.30795938]
[1673921493383,0.19072595,21041.0,21037.0,0.30795938]
[1673921493907,0.01040001,21039.0,21037.0,0.30795938]
[1673921495687,0.10040001,21039.0,21037.0,0.30795938]
[1673921498587,0.10040001,21039.0,21037.0,0.3]
[1673921499678,0.10040001,21039.0,21035.0,0.48511896]
[1673921499938,0.29112596,21039.0,21035.0,0.48511896]
[1673921500719,0.29112596,21039.0,21036.0,0.3]
[1673921500993,0.01040001,21039.0,21036.0,0.3]
[1673921501248,0.01040001,21039.0,21035.0,0.48511896]
[1673921501505,0.20112596,21039.0,21035.0,0.48511896]
[1673921502045,0.29112596,21039.0,21035.0,0.48511896]
[1673921502792,0.10040001,21039.0,21035.0,0.48511896]
[1673921504304,0.10040001,21039.0,21036.0,0.3]
[1673921505349,0.01040001,21039.0,21036.0,0.3]
[1673921505614,0.10040001,21039.0,21036.0,0.3]
[1673921508406,0.10040001,21039.0,21035.0,0.89801896]
[1673921508715,0.10040001,21039.0,21035.0,0.78511896]
[1673921508716,0.40342596,21039.0,21035.0,0.78511896]
[1673921509190,0.21270001,21039.0,21035.0,0.78511896]
[1673921509440,0.12270001,21039.0,21035.0,0.78511896]
[1673921509691,0.21270001,21039.0,21035.0,0.78511896]
[1673921510006,0.10040001,21039.0,21035.0,0.89801896]
[1673921514558,0.29112596,21039.0,21035.0,0.89801896]
[1673921515145,0.10040001,21039.0,21035.0,0.89801896]
[1673921516636,0.21240001,21039.0,21035.0,0.48511896]
[1673921521176,0.21240001,21039.0,21035.0,0.62642654]
[1673921521434,0.21240001,21039.0,21036.0,0.3]
[1673921522592,0.12240001,21039.0,21036.0,0.14130758]
[1673921522851,0.21240001,21039.0,21036.0,0.14130758]
[1673921523105,0.21240001,21039.0,21036.0,0.44130758]
[1673921523912,0.21240001,21039.0,21036.0,0.14130758]
[1673921524173,0.21240001,21039.0,21036.0,0.44130758]
[1673921526559,0.21240001,21039.0,21036.0,0.65326895]